[Event "Late-Titled-Tuesday-Blitz-April-23-2024"]
[Site "Chess.com"]
[Date "2024.04.23"]
[Round "10"]
[White "JoakimVonAnd"]
[Black "WoodlandMagic"]
[Result "1-0"]
[WhiteElo "2745"]
[BlackElo "2821"]
[TimeControl "180+1"]
[EndTime "15:55:35 PDT"]
[Termination "JoakimVonAnd won by resignation"]

1. d4 {[%clk 0:03:00.9]} 1... Nf6 {[%clk 0:02:59.6]} 2. Nf3 {[%clk 0:03:01.2]}
2... g6 {[%clk 0:02:57.8]} 3. c4 {[%clk 0:03:00.9]} 3... Bg7 {[%clk 0:02:57.7]}
4. g3 {[%clk 0:03:01.2]} 4... O-O {[%clk 0:02:57.6]} 5. Bg2 {[%clk 0:03:01.9]}
5... d6 {[%clk 0:02:56.9]} 6. O-O {[%clk 0:03:02.5]} 6... Nc6 {[%clk 0:02:56.1]}
7. d5 {[%clk 0:03:02.1]} 7... Nb4 {[%clk 0:02:51.5]} 8. Nc3 {[%clk 0:02:59.2]}
8... c6 {[%clk 0:02:48.9]} 9. a3 {[%clk 0:02:56.6]} 9... Na6 {[%clk 0:02:47.5]}
10. dxc6 {[%clk 0:02:53.4]} 10... bxc6 {[%clk 0:02:47]} 11. Nd4 {[%clk 0:02:54]}
11... Nb8 {[%clk 0:02:46.6]} 12. Nxc6 {[%clk 0:02:50.4]} 12... Nxc6 {[%clk
0:02:46.7]} 13. Bxc6 {[%clk 0:02:51.3]} 13... Rb8 {[%clk 0:02:44.7]} 14. Bg2
{[%clk 0:02:51]} 14... Be6 {[%clk 0:02:39.1]} 15. Nd5 {[%clk 0:02:46.6]} 15...
Nxd5 {[%clk 0:02:31.5]} 16. cxd5 {[%clk 0:02:46.2]} 16... Bd7 {[%clk 0:02:23.8]}
17. Rb1 {[%clk 0:02:44.3]} 17... a5 {[%clk 0:02:21.8]} 18. b4 {[%clk 0:02:42.5]}
18... axb4 {[%clk 0:02:20.7]} 19. axb4 {[%clk 0:02:43.4]} 19... Qc7 {[%clk
0:02:15.1]} 20. Bg5 {[%clk 0:02:42]} 20... Bb5 {[%clk 0:02:09.4]} 21. Qd2 {[%clk
0:02:37]} 21... Rfc8 {[%clk 0:02:01.5]} 22. Rfc1 {[%clk 0:02:30.2]} 22... Qa7
{[%clk 0:01:59.7]} 23. Bh3 {[%clk 0:02:23.3]} 23... Rc4 {[%clk 0:01:41.6]} 24.
Rxc4 {[%clk 0:02:18.6]} 24... Bxc4 {[%clk 0:01:41.6]} 25. Rc1 {[%clk 0:02:18.5]}
25... Bb3 {[%clk 0:01:34.1]} 26. Qe3 {[%clk 0:01:55.2]} 26... Qxe3 {[%clk
0:01:31.7]} 27. Bxe3 {[%clk 0:01:52.2]} 27... Bxd5 {[%clk 0:01:29.4]} 28. b5
{[%clk 0:01:48.8]} 28... Bb2 {[%clk 0:01:10.6]} 29. Rc8+ {[%clk 0:01:43.8]}
29... Rxc8 {[%clk 0:01:10.2]} 30. Bxc8 {[%clk 0:01:44.7]} 30... Bc4 {[%clk
0:00:54.9]} 31. b6 {[%clk 0:01:43.3]} 31... d5 {[%clk 0:00:55.2]} 32. b7 {[%clk
0:01:34.9]} 1-0

[Event "Late-Titled-Tuesday-Blitz-April-23-2024"]
[Site "Chess.com"]
[Date "2024.04.23"]
[Round "10"]
[White "ploxoi"]
[Black "aranibos"]
[Result "0-1"]
[WhiteElo "2386"]
[BlackElo "2267"]
[TimeControl "180+1"]
[EndTime "15:55:51 PDT"]
[Termination "aranibos won by resignation"]

1. d4 {[%clk 0:03:00.9]} 1... d5 {[%clk 0:02:59.1]} 2. Nf3 {[%clk 0:03:00]} 2...
Nf6 {[%clk 0:02:59]} 3. c4 {[%clk 0:03:00.1]} 3... c6 {[%clk 0:02:58.9]} 4. cxd5
{[%clk 0:02:59.7]} 4... cxd5 {[%clk 0:02:58.5]} 5. Nc3 {[%clk 0:03:00.5]} 5...
Nc6 {[%clk 0:02:58.5]} 6. Bf4 {[%clk 0:03:01]} 6... a6 {[%clk 0:02:58.3]} 7. e3
{[%clk 0:03:00.9]} 7... Bg4 {[%clk 0:02:57.1]} 8. Bd3 {[%clk 0:02:52.8]} 8... e6
{[%clk 0:02:50.4]} 9. a4 {[%clk 0:02:52.2]} 9... Bb4 {[%clk 0:02:44.9]} 10. Qb3
{[%clk 0:02:51.7]} 10... Bxf3 {[%clk 0:02:38.6]} 11. gxf3 {[%clk 0:02:52.6]}
11... O-O {[%clk 0:02:37.7]} 12. Rg1 {[%clk 0:02:49.9]} 12... Nh5 {[%clk
0:02:31.2]} 13. Bg3 {[%clk 0:02:45.4]} 13... g6 {[%clk 0:02:27.5]} 14. Ke2
{[%clk 0:02:42.2]} 14... Qe7 {[%clk 0:02:24.4]} 15. Rac1 {[%clk 0:02:24.1]}
15... Rac8 {[%clk 0:02:24.7]} 16. Na2 {[%clk 0:02:23.9]} 16... a5 {[%clk
0:02:10.1]} 17. Bb5 {[%clk 0:02:19.6]} 17... Bd6 {[%clk 0:02:05.2]} 18. Bxc6
{[%clk 0:02:12.2]} 18... bxc6 {[%clk 0:02:01.3]} 19. Rc2 {[%clk 0:02:10.3]}
19... c5 {[%clk 0:01:50.7]} 20. dxc5 {[%clk 0:02:04.9]} 20... Rxc5 {[%clk
0:01:45.4]} 21. Rgc1 {[%clk 0:02:00.3]} 21... Rxc2+ {[%clk 0:01:43.9]} 22. Rxc2
{[%clk 0:01:59.5]} 22... Nxg3+ {[%clk 0:01:39.9]} 23. fxg3 {[%clk 0:01:58.9]}
23... Rb8 {[%clk 0:01:39.7]} 24. Qc3 {[%clk 0:01:57.2]} 24... Bb4 {[%clk
0:01:40]} 25. Nxb4 {[%clk 0:01:55.3]} 25... Rxb4 {[%clk 0:01:39.9]} 26. Qe5
{[%clk 0:01:50.2]} 26... Qb7 {[%clk 0:01:31.5]} 27. f4 {[%clk 0:01:37.3]} 27...
h5 {[%clk 0:01:29.3]} 28. Qf6 {[%clk 0:01:32]} 28... d4 {[%clk 0:01:24.4]} 29.
exd4 {[%clk 0:00:53]} 29... Qe4+ {[%clk 0:01:23]} 30. Kd2 {[%clk 0:00:41.8]}
30... Rxd4+ {[%clk 0:01:23]} 0-1

[Event "Late-Titled-Tuesday-Blitz-April-23-2024"]
[Site "Chess.com"]
[Date "2024.04.23"]
[Round "10"]
[White "giomar27"]
[Black "nabukatnezarr"]
[Result "0-1"]
[WhiteElo "2499"]
[BlackElo "2623"]
[TimeControl "180+1"]
[EndTime "15:56:00 PDT"]
[Termination "nabukatnezarr won by resignation"]

1. d4 {[%clk 0:03:00.9]} 1... Nf6 {[%clk 0:02:57.1]} 2. Nc3 {[%clk 0:03:00.9]}
2... d5 {[%clk 0:02:56.4]} 3. Bf4 {[%clk 0:03:01.4]} 3... a6 {[%clk 0:02:51.3]}
4. e3 {[%clk 0:03:01]} 4... Bf5 {[%clk 0:02:47.6]} 5. Nf3 {[%clk 0:02:57.2]}
5... e6 {[%clk 0:02:46.2]} 6. Bd3 {[%clk 0:02:57.5]} 6... Bxd3 {[%clk 0:02:44]}
7. cxd3 {[%clk 0:02:58.4]} 7... Nbd7 {[%clk 0:02:42.3]} 8. Ne5 {[%clk
0:02:56.1]} 8... Nxe5 {[%clk 0:02:41.7]} 9. dxe5 {[%clk 0:02:55.8]} 9... Nd7
{[%clk 0:02:41.6]} 10. O-O {[%clk 0:02:55.4]} 10... Be7 {[%clk 0:02:40.3]} 11.
Bg3 {[%clk 0:02:55.3]} 11... O-O {[%clk 0:02:36.7]} 12. f4 {[%clk 0:02:55]}
12... g6 {[%clk 0:02:37.2]} 13. e4 {[%clk 0:02:52.1]} 13... dxe4 {[%clk
0:02:30.6]} 14. dxe4 {[%clk 0:02:47.8]} 14... Nc5 {[%clk 0:02:30.2]} 15. Qg4
{[%clk 0:02:43.3]} 15... h5 {[%clk 0:02:27]} 16. Qf3 {[%clk 0:02:43.2]} 16...
Qd3 {[%clk 0:02:26.7]} 17. Rad1 {[%clk 0:02:30.2]} 17... Qxf3 {[%clk 0:02:24.4]}
18. Rxf3 {[%clk 0:02:29.3]} 18... Rad8 {[%clk 0:02:24.2]} 19. Rff1 {[%clk
0:02:28.4]} 19... Rxd1 {[%clk 0:02:23]} 20. Rxd1 {[%clk 0:02:28.4]} 20... Rd8
{[%clk 0:02:23.7]} 21. Rxd8+ {[%clk 0:02:26.1]} 21... Bxd8 {[%clk 0:02:24.6]}
22. Kf1 {[%clk 0:02:25.3]} 22... Kf8 {[%clk 0:02:21.9]} 23. Ke2 {[%clk
0:02:25.5]} 23... Ke8 {[%clk 0:02:22.5]} 24. Bf2 {[%clk 0:02:25.8]} 24... Nd7
{[%clk 0:02:20.1]} 25. b4 {[%clk 0:02:23.8]} 25... Be7 {[%clk 0:02:20.3]} 26. a3
{[%clk 0:02:13.8]} 26... Kd8 {[%clk 0:02:14.9]} 27. Kd3 {[%clk 0:02:13.6]} 27...
c6 {[%clk 0:02:02.8]} 28. g3 {[%clk 0:02:09.8]} 28... Kc7 {[%clk 0:02:01.7]} 29.
h3 {[%clk 0:02:04.6]} 29... b5 {[%clk 0:02:01.5]} 30. g4 {[%clk 0:01:47.6]}
30... hxg4 {[%clk 0:02:01]} 31. hxg4 {[%clk 0:01:48]} 31... c5 {[%clk
0:01:54.8]} 32. Na2 {[%clk 0:01:42]} 32... Kc6 {[%clk 0:01:43.1]} 33. Kc3 {[%clk
0:01:40.3]} 33... Bd8 {[%clk 0:01:34.3]} 34. g5 {[%clk 0:01:39]} 34... Bb6
{[%clk 0:01:31.9]} 35. bxc5 {[%clk 0:01:36.3]} 35... Nxc5 {[%clk 0:01:24.3]} 36.
Nb4+ {[%clk 0:01:35.4]} 36... Kb7 {[%clk 0:01:24.9]} 37. Bxc5 {[%clk 0:01:33.3]}
37... Bxc5 {[%clk 0:01:25.8]} 38. Kb3 {[%clk 0:01:30.1]} 38... Bxb4 {[%clk
0:00:48.7]} 39. axb4 {[%clk 0:01:30]} 39... Kb6 {[%clk 0:00:49.2]} 40. f5 {[%clk
0:01:27.9]} 40... a5 {[%clk 0:00:49.5]} 41. Ka3 {[%clk 0:01:26.8]} 41... axb4+
{[%clk 0:00:49.2]} 42. Kxb4 {[%clk 0:01:27.4]} 42... Kc6 {[%clk 0:00:49.8]} 43.
Kb3 {[%clk 0:01:26]} 43... Kc5 {[%clk 0:00:50]} 44. Kc3 {[%clk 0:01:26.6]} 44...
b4+ {[%clk 0:00:49.9]} 45. Kb3 {[%clk 0:01:26.8]} 45... Kb5 {[%clk 0:00:50.5]}
0-1

[Event "Late-Titled-Tuesday-Blitz-April-23-2024"]
[Site "Chess.com"]
[Date "2024.04.23"]
[Round "10"]
[White "kripri"]
[Black "Kratos031"]
[Result "1-0"]
[WhiteElo "2350"]
[BlackElo "2457"]
[TimeControl "180+1"]
[EndTime "15:56:10 PDT"]
[Termination "kripri won by resignation"]

1. e4 {[%clk 0:03:00.9]} 1... c5 {[%clk 0:02:58.5]} 2. Nf3 {[%clk 0:03:00.9]}
2... Nc6 {[%clk 0:02:58.6]} 3. d4 {[%clk 0:03:01.3]} 3... cxd4 {[%clk
0:02:58.9]} 4. Nxd4 {[%clk 0:03:02.2]} 4... e5 {[%clk 0:02:59.2]} 5. Nb5 {[%clk
0:02:59.5]} 5... d6 {[%clk 0:02:59.5]} 6. N1c3 {[%clk 0:02:55.8]} 6... a6 {[%clk
0:02:59.2]} 7. Na3 {[%clk 0:02:54.9]} 7... Be7 {[%clk 0:02:59.8]} 8. Nd5 {[%clk
0:02:55]} 8... Nf6 {[%clk 0:02:56.7]} 9. Be3 {[%clk 0:02:45.1]} 9... Nxd5 {[%clk
0:02:38.4]} 10. exd5 {[%clk 0:02:43.8]} 10... Nb8 {[%clk 0:02:37.8]} 11. Be2
{[%clk 0:02:32.6]} 11... O-O {[%clk 0:02:36]} 12. O-O {[%clk 0:02:32.3]} 12...
f5 {[%clk 0:02:35.6]} 13. Nc4 {[%clk 0:02:27.7]} 13... Nd7 {[%clk 0:02:26.1]}
14. f3 {[%clk 0:02:14.6]} 14... b5 {[%clk 0:02:22.5]} 15. Nd2 {[%clk 0:02:14.2]}
15... Bb7 {[%clk 0:02:21.1]} 16. c4 {[%clk 0:02:13.9]} 16... b4 {[%clk
0:02:15.1]} 17. Qb3 {[%clk 0:02:09.9]} 17... a5 {[%clk 0:02:12.3]} 18. c5 {[%clk
0:02:04.2]} 18... Ba6 {[%clk 0:01:27.1]} 19. Bxa6 {[%clk 0:01:56.5]} 19... Rxa6
{[%clk 0:01:28]} 20. Nc4 {[%clk 0:01:34]} 20... a4 {[%clk 0:00:57.5]} 21. Qxb4
{[%clk 0:01:31.7]} 21... Nxc5 {[%clk 0:00:55.3]} 22. Bxc5 {[%clk 0:01:24.9]}
22... dxc5 {[%clk 0:00:56.2]} 23. Qd2 {[%clk 0:01:24.2]} 23... Bd6 {[%clk
0:00:54.6]} 24. Rfe1 {[%clk 0:01:22.6]} 24... Re8 {[%clk 0:00:54.6]} 25. Qd3
{[%clk 0:01:22]} 25... e4 {[%clk 0:00:31.2]} 26. fxe4 {[%clk 0:01:19.9]} 26...
fxe4 {[%clk 0:00:32.1]} 27. Rxe4 {[%clk 0:01:18.8]} 27... Ra8 {[%clk 0:00:23.7]}
28. Rxe8+ {[%clk 0:01:10.2]} 28... Qxe8 {[%clk 0:00:24]} 29. Nxd6 {[%clk
0:01:10.9]} 29... Qe5 {[%clk 0:00:24.3]} 30. Nc4 {[%clk 0:01:10.2]} 30... Qf5
{[%clk 0:00:23.1]} 1-0

[Event "Late-Titled-Tuesday-Blitz-April-23-2024"]
[Site "Chess.com"]
[Date "2024.04.23"]
[Round "10"]
[White "tarno17"]
[Black "Crazy_girl99"]
[Result "0-1"]
[WhiteElo "2166"]
[BlackElo "2605"]
[TimeControl "180+1"]
[EndTime "15:56:20 PDT"]
[Termination "Crazy_girl99 won on time"]

1. e4 {[%clk 0:03:00.9]} 1... e5 {[%clk 0:02:59.9]} 2. Nf3 {[%clk 0:03:00.6]}
2... Nc6 {[%clk 0:03:00.1]} 3. Bb5 {[%clk 0:03:01.1]} 3... a6 {[%clk 0:03:00.3]}
4. Ba4 {[%clk 0:03:00.5]} 4... Nf6 {[%clk 0:03:00.9]} 5. O-O {[%clk 0:03:00.2]}
5... Nxe4 {[%clk 0:03:00.9]} 6. Re1 {[%clk 0:03:00]} 6... Nc5 {[%clk 0:03:00.6]}
7. Nxe5 {[%clk 0:02:56.7]} 7... Nxe5 {[%clk 0:03:00.3]} 8. Rxe5+ {[%clk
0:02:55.2]} 8... Be7 {[%clk 0:03:00.9]} 9. c3 {[%clk 0:02:42.8]} 9... Nxa4
{[%clk 0:02:53.6]} 10. Qxa4 {[%clk 0:02:42.3]} 10... O-O {[%clk 0:02:53.5]} 11.
d4 {[%clk 0:02:33.9]} 11... d5 {[%clk 0:02:53.2]} 12. Nd2 {[%clk 0:02:20.8]}
12... Bd6 {[%clk 0:02:52.9]} 13. Re1 {[%clk 0:02:05.2]} 13... Bg4 {[%clk
0:02:51.5]} 14. Nf1 {[%clk 0:02:00.4]} 14... Qf6 {[%clk 0:02:45.7]} 15. Bd2
{[%clk 0:01:21.7]} 15... h5 {[%clk 0:02:39.7]} 16. Qc2 {[%clk 0:00:55.3]} 16...
h4 {[%clk 0:02:34.5]} 17. Ne3 {[%clk 0:00:31.8]} 17... Be6 {[%clk 0:02:33.7]}
18. h3 {[%clk 0:00:21.7]} 18... Rae8 {[%clk 0:02:31.8]} 19. Re2 {[%clk
0:00:12.5]} 19... Bf4 {[%clk 0:02:11.4]} 20. Rae1 {[%clk 0:00:11.9]} 20... Qg5
{[%clk 0:02:04.5]} 21. Ng4 {[%clk 0:00:10.2]} 21... Bxd2 {[%clk 0:01:48.5]} 22.
Qxd2 {[%clk 0:00:08.2]} 22... Qxd2 {[%clk 0:01:44.5]} 23. Rxd2 {[%clk 0:00:08]}
23... Bxg4 {[%clk 0:01:45.2]} 24. Rxe8 {[%clk 0:00:08.2]} 24... Rxe8 {[%clk
0:01:45.9]} 25. hxg4 {[%clk 0:00:08.9]} 25... Re1+ {[%clk 0:01:41.1]} 26. Kh2
{[%clk 0:00:09.1]} 26... g5 {[%clk 0:01:41.9]} 27. a3 {[%clk 0:00:05.6]} 27...
Kg7 {[%clk 0:01:41.8]} 28. Rc2 {[%clk 0:00:04.8]} 28... c6 {[%clk 0:01:39.7]}
29. c4 {[%clk 0:00:01.8]} 29... dxc4 {[%clk 0:01:39.2]} 30. Rxc4 {[%clk
0:00:02]} 30... Re2 {[%clk 0:01:39.7]} 31. b4 {[%clk 0:00:01.9]} 31... Rxf2
{[%clk 0:01:39.7]} 32. d5 {[%clk 0:00:01.7]} 32... cxd5 {[%clk 0:01:39.6]} 33.
Rd4 {[%clk 0:00:02.2]} 33... Rf4 {[%clk 0:01:36]} 34. Rxd5 {[%clk 0:00:02.6]}
34... Rxg4 {[%clk 0:01:36.7]} 35. Rd7 {[%clk 0:00:03.4]} 35... b5 {[%clk
0:01:35.8]} 36. Ra7 {[%clk 0:00:02.2]} 36... Re4 {[%clk 0:01:30.2]} 37. Rxa6
{[%clk 0:00:02]} 37... g4 {[%clk 0:01:30.6]} 0-1

[Event "Late-Titled-Tuesday-Blitz-April-23-2024"]
[Site "Chess.com"]
[Date "2024.04.23"]
[Round "10"]
[White "MuhittinBuker"]
[Black "Navyblue1"]
[Result "1-0"]
[WhiteElo "2192"]
[BlackElo "2256"]
[TimeControl "180+1"]
[EndTime "15:56:28 PDT"]
[Termination "MuhittinBuker won by resignation"]

1. d4 {[%clk 0:03:00.9]} 1... Nf6 {[%clk 0:02:57.7]} 2. c4 {[%clk 0:03:01.8]}
2... g6 {[%clk 0:02:57.3]} 3. Nc3 {[%clk 0:03:02.7]} 3... Bg7 {[%clk 0:02:57.3]}
4. e4 {[%clk 0:03:03.2]} 4... d6 {[%clk 0:02:57.8]} 5. Nf3 {[%clk 0:03:03.7]}
5... O-O {[%clk 0:02:56.8]} 6. Be2 {[%clk 0:03:04.6]} 6... Qe8 {[%clk
0:02:56.3]} 7. O-O {[%clk 0:02:57.1]} 7... e5 {[%clk 0:02:55]} 8. d5 {[%clk
0:02:55.7]} 8... a5 {[%clk 0:02:53.6]} 9. b3 {[%clk 0:02:55.9]} 9... Na6 {[%clk
0:02:51.3]} 10. a3 {[%clk 0:02:56]} 10... Nc5 {[%clk 0:02:42.5]} 11. Qc2 {[%clk
0:02:56.4]} 11... Nh5 {[%clk 0:02:36.7]} 12. Re1 {[%clk 0:02:53.7]} 12... f5
{[%clk 0:02:35.5]} 13. Be3 {[%clk 0:02:49.9]} 13... fxe4 {[%clk 0:02:07.1]} 14.
Nxe4 {[%clk 0:02:48.3]} 14... Nxe4 {[%clk 0:01:59.2]} 15. Qxe4 {[%clk
0:02:46.1]} 15... Nf4 {[%clk 0:01:56.1]} 16. Bxf4 {[%clk 0:02:29.6]} 16... exf4
{[%clk 0:01:53.1]} 17. Qxe8 {[%clk 0:02:28.5]} 17... Rxe8 {[%clk 0:01:52.5]} 18.
Rad1 {[%clk 0:02:27.5]} 18... Bf5 {[%clk 0:01:49.2]} 19. Bd3 {[%clk 0:02:25.3]}
19... Bxd3 {[%clk 0:01:40.6]} 20. Rxd3 {[%clk 0:02:24.5]} 20... Rxe1+ {[%clk
0:01:39.9]} 21. Nxe1 {[%clk 0:02:24.8]} 21... Re8 {[%clk 0:01:39.8]} 22. Kf1
{[%clk 0:02:24.8]} 22... g5 {[%clk 0:01:21]} 23. h3 {[%clk 0:02:24.4]} 23... h6
{[%clk 0:01:20.5]} 24. Nf3 {[%clk 0:02:21.6]} 24... Re4 {[%clk 0:01:18.2]} 25.
Nd2 {[%clk 0:02:15.9]} 25... Rd4 {[%clk 0:01:13.1]} 26. Rxd4 {[%clk 0:02:15.8]}
26... Bxd4 {[%clk 0:01:12.5]} 27. Ne4 {[%clk 0:02:14.5]} 27... Kf7 {[%clk
0:01:07.8]} 28. Ke2 {[%clk 0:02:14.5]} 28... Bb2 {[%clk 0:01:05.3]} 29. a4
{[%clk 0:02:12.7]} 29... b6 {[%clk 0:00:52.7]} 30. Kd3 {[%clk 0:02:12.7]} 30...
Kg6 {[%clk 0:00:48.6]} 31. Nd2 {[%clk 0:02:09.7]} 31... Kf5 {[%clk 0:00:45]} 32.
f3 {[%clk 0:02:09.9]} 32... h5 {[%clk 0:00:41.9]} 33. Nb1 {[%clk 0:02:06.1]}
33... g4 {[%clk 0:00:28]} 34. hxg4+ {[%clk 0:02:05.3]} 34... hxg4 {[%clk
0:00:27.5]} 35. Kc2 {[%clk 0:02:05.2]} 35... Bd4 {[%clk 0:00:18.4]} 36. Na3
{[%clk 0:02:04.7]} 36... gxf3 {[%clk 0:00:16.1]} 37. gxf3 {[%clk 0:02:04.3]}
37... Kg5 {[%clk 0:00:16.4]} 38. Kd3 {[%clk 0:02:04.4]} 38... Bc5 {[%clk
0:00:15.8]} 39. Nb5 {[%clk 0:02:04.1]} 39... Kh4 {[%clk 0:00:16.4]} 40. Ke4
{[%clk 0:02:04.4]} 40... Kg3 {[%clk 0:00:16.6]} 41. Nxc7 {[%clk 0:02:04.6]}
41... Bb4 {[%clk 0:00:16]} 42. Nb5 {[%clk 0:01:53.8]} 42... Bc5 {[%clk
0:00:15.2]} 43. Nc7 {[%clk 0:01:52.2]} 43... Bb4 {[%clk 0:00:14.9]} 44. Ne6
{[%clk 0:01:52.3]} 44... Bd2 {[%clk 0:00:15]} 45. Nd4 {[%clk 0:01:47.8]} 45...
Be3 {[%clk 0:00:14.7]} 46. Nf5+ {[%clk 0:01:47.4]} 46... Kf2 {[%clk 0:00:15]}
47. Nxd6 {[%clk 0:01:45.6]} 47... Bc5 {[%clk 0:00:15.3]} 48. Nb5 {[%clk
0:01:40.1]} 1-0

[Event "Late-Titled-Tuesday-Blitz-April-23-2024"]
[Site "Chess.com"]
[Date "2024.04.23"]
[Round "10"]
[White "Sesleria"]
[Black "Mandaloriana19"]
[Result "0-1"]
[WhiteElo "2128"]
[BlackElo "2364"]
[TimeControl "180+1"]
[EndTime "15:56:28 PDT"]
[Termination "Mandaloriana19 won by resignation"]

1. c4 {[%clk 0:02:58.7]} 1... c5 {[%clk 0:02:59.6]} 2. Nf3 {[%clk 0:02:58.1]}
2... Nf6 {[%clk 0:02:59.7]} 3. d4 {[%clk 0:02:58.4]} 3... cxd4 {[%clk
0:02:57.1]} 4. Nxd4 {[%clk 0:02:58.7]} 4... g6 {[%clk 0:02:54.5]} 5. Nc3 {[%clk
0:02:57]} 5... Bg7 {[%clk 0:02:54.5]} 6. e4 {[%clk 0:02:50.8]} 6... d6 {[%clk
0:02:54.8]} 7. Be2 {[%clk 0:02:51.1]} 7... Nc6 {[%clk 0:02:55.1]} 8. Be3 {[%clk
0:02:51.5]} 8... Bd7 {[%clk 0:02:55.8]} 9. O-O {[%clk 0:02:51.7]} 9... Nxd4
{[%clk 0:02:55.7]} 10. Bxd4 {[%clk 0:02:51.3]} 10... Bc6 {[%clk 0:02:56.4]} 11.
f3 {[%clk 0:02:51]} 11... O-O {[%clk 0:02:56.4]} 12. Qd2 {[%clk 0:02:50.2]}
12... a5 {[%clk 0:02:56.6]} 13. b3 {[%clk 0:02:48.9]} 13... Nd7 {[%clk 0:02:54]}
14. Be3 {[%clk 0:02:47.2]} 14... Nc5 {[%clk 0:02:50]} 15. Rfb1 {[%clk
0:02:43.6]} 15... Re8 {[%clk 0:02:45.8]} 16. a3 {[%clk 0:02:43.1]} 16... Ne6
{[%clk 0:02:44.7]} 17. b4 {[%clk 0:02:37.6]} 17... b6 {[%clk 0:02:40.7]} 18. Ra2
{[%clk 0:02:03]} 18... h5 {[%clk 0:02:36.9]} 19. Nd5 {[%clk 0:02:00.6]} 19...
Rb8 {[%clk 0:02:30.7]} 20. Rc2 {[%clk 0:01:53]} 20... axb4 {[%clk 0:02:29.2]}
21. axb4 {[%clk 0:01:52.9]} 21... Ba4 {[%clk 0:02:27.4]} 22. Ra2 {[%clk
0:01:50.4]} 22... b5 {[%clk 0:02:26.2]} 23. cxb5 {[%clk 0:01:45.1]} 23... Bxb5
{[%clk 0:02:26]} 24. Ra7 {[%clk 0:01:32.9]} 24... Bxe2 {[%clk 0:02:21.2]} 25.
Qxe2 {[%clk 0:01:33.1]} 25... Nd4 {[%clk 0:02:21.1]} 26. Qc4 {[%clk 0:01:24.6]}
26... Nb5 {[%clk 0:02:19.6]} 27. Ra5 {[%clk 0:01:14.9]} 27... e6 {[%clk
0:01:51.7]} 28. Rxb5 {[%clk 0:01:01]} 28... exd5 {[%clk 0:01:50.9]} 29. Rxd5
{[%clk 0:01:00.7]} 29... Be5 {[%clk 0:01:29.6]} 30. f4 {[%clk 0:00:52.8]} 30...
Bg7 {[%clk 0:01:22.4]} 31. e5 {[%clk 0:00:52.3]} 31... Bf8 {[%clk 0:01:19.9]}
32. Bc5 {[%clk 0:00:46.4]} 32... Rc8 {[%clk 0:01:17.8]} 33. exd6 {[%clk
0:00:45.4]} 33... Bxd6 {[%clk 0:01:14.2]} 34. Rbd1 {[%clk 0:00:44.2]} 34...
Bxc5+ {[%clk 0:01:13.7]} 35. bxc5 {[%clk 0:00:44.3]} 35... Qa5 {[%clk 0:01:10]}
36. c6 {[%clk 0:00:42.1]} 36... Qb6+ {[%clk 0:01:09.8]} 37. Rc5 {[%clk
0:00:37.8]} 37... Rxc6 {[%clk 0:01:09]} 38. Rd4 {[%clk 0:00:19]} 0-1

[Event "Late-Titled-Tuesday-Blitz-April-23-2024"]
[Site "Chess.com"]
[Date "2024.04.23"]
[Round "10"]
[White "enriquetejedor"]
[Black "Naoki"]
[Result "1-0"]
[WhiteElo "2747"]
[BlackElo "2577"]
[TimeControl "180+1"]
[EndTime "15:56:30 PDT"]
[Termination "enriquetejedor won by resignation"]

1. c4 {[%clk 0:03:00.9]} 1... Nf6 {[%clk 0:02:54.5]} 2. Nc3 {[%clk 0:03:00.4]}
2... g6 {[%clk 0:02:54.4]} 3. e4 {[%clk 0:02:58.8]} 3... d6 {[%clk 0:02:54.8]}
4. d4 {[%clk 0:02:57.6]} 4... Bg7 {[%clk 0:02:55.2]} 5. h3 {[%clk 0:02:56.8]}
5... O-O {[%clk 0:02:54.2]} 6. Nf3 {[%clk 0:02:55.2]} 6... e5 {[%clk 0:02:54.7]}
7. d5 {[%clk 0:02:31.7]} 7... Nh5 {[%clk 0:02:50]} 8. Bg5 {[%clk 0:02:31.2]}
8... Qe8 {[%clk 0:02:46.6]} 9. Qd2 {[%clk 0:02:27.1]} 9... Na6 {[%clk
0:02:43.7]} 10. g4 {[%clk 0:02:25.4]} 10... Nf4 {[%clk 0:02:43]} 11. O-O-O
{[%clk 0:02:18.5]} 11... h6 {[%clk 0:02:40.2]} 12. Bxf4 {[%clk 0:02:18.2]} 12...
exf4 {[%clk 0:02:41.1]} 13. Qxf4 {[%clk 0:02:18.6]} 13... Nc5 {[%clk 0:02:30.2]}
14. e5 {[%clk 0:02:18.7]} 14... dxe5 {[%clk 0:02:24.9]} 15. Qe3 {[%clk 0:02:19]}
15... b6 {[%clk 0:02:22.4]} 16. Bg2 {[%clk 0:02:17]} 16... e4 {[%clk 0:02:09.5]}
17. Nd4 {[%clk 0:02:17]} 17... f5 {[%clk 0:02:07.6]} 18. gxf5 {[%clk 0:02:16.4]}
18... gxf5 {[%clk 0:02:08.5]} 19. Rhg1 {[%clk 0:02:14.7]} 19... f4 {[%clk
0:01:50.9]} 20. Qd2 {[%clk 0:01:59.2]} 20... Nd3+ {[%clk 0:01:50.1]} 21. Kb1
{[%clk 0:01:59.6]} 21... Kh8 {[%clk 0:01:03.5]} 22. Bxe4 {[%clk 0:01:58.7]}
22... Nc5 {[%clk 0:00:58.8]} 23. Bg6 {[%clk 0:01:56.9]} 23... Qe5 {[%clk
0:00:51.4]} 24. Nf3 {[%clk 0:01:56.4]} 24... Qf6 {[%clk 0:00:48.8]} 25. Ne4
{[%clk 0:01:55]} 25... Nxe4 {[%clk 0:00:42.6]} 26. Bxe4 {[%clk 0:01:55.9]} 26...
Bxh3 {[%clk 0:00:42.7]} 27. Rg6 {[%clk 0:01:55.4]} 27... Qe7 {[%clk 0:00:34.7]}
28. Re1 {[%clk 0:01:52.2]} 28... Rae8 {[%clk 0:00:24.7]} 29. a3 {[%clk
0:01:49.1]} 29... Qf7 {[%clk 0:00:18.4]} 30. Bc2 {[%clk 0:01:31.3]} 30... Rxe1+
{[%clk 0:00:18]} 31. Qxe1 {[%clk 0:01:31.3]} 31... Bf5 {[%clk 0:00:18.9]} 32.
Nh4 {[%clk 0:01:19.5]} 32... Bxc2+ {[%clk 0:00:18.2]} 33. Kxc2 {[%clk
0:01:20.4]} 33... f3 {[%clk 0:00:14.2]} 34. Re6 {[%clk 0:01:17.7]} 34... Rg8
{[%clk 0:00:07.5]} 35. Ng6+ {[%clk 0:01:17.2]} 35... Kh7 {[%clk 0:00:07.8]} 36.
Qe4 {[%clk 0:01:17.9]} 36... Bf6 {[%clk 0:00:06.3]} 37. Ne5+ {[%clk 0:01:16.5]}
1-0